Cogmind - Beta 16 *** ADVENTURER MODE // 2025.11.17 @ 10:17:18 Player: oshi0ne1 Result: Self-destructed Performance ------------- Evolutions (3) 1500 Regions Visited (6) 1200 Robots Destroyed (62) 310 Value Destroyed (1763) 1763 Prototype IDs (2) 40 Alien Tech Used (0) 0 Bonus (0) 0 TOTAL SCORE: 4813 Bonus ------- None Cogmind --------- Core Integrity 53/700 Matter 61/300 Energy 100/100 System Corruption 9% Temperature Cool (9) Movement Core (1350) Ox26 Location -7/Lower Caves Parts ------- > --- POWER (2) -------- (None) > --- PROPULSION (4) --- (None) > --- UTILITY (5) ------ Huge Storage Unit > --- WEAPON (2) ------- (None) > --- INVENTORY (25) --- Ion Engine Ion Engine Ion Engine Light Ion Engine Light Nuclear Core Enhanced Nuclear Core Enhanced Nuclear Core Improved Titanium Leg Improved Hover Unit Improved Hover Unit Gravmag System Advanced Weight Redist. System Kinecellerator Improved Light Cannon Peak State ------------ > --- POWER ------------ Enhanced Nuclear Core Enhanced Nuclear Core > --- PROPULSION ------- Aluminum Leg Improved Titanium Leg Wheel Compact Wheel > --- UTILITY ---------- Huge Storage Unit Improved Sensor Array Improved Signal Interpreter Improved Terrain Scan Processor Improved Targeting Computer > --- WEAPON ----------- Gauss Rifle Assault Cannon > --- INVENTORY -------- Ion Engine Ion Engine Ion Engine Light Ion Engine Light Nuclear Core Enhanced Nuclear Core Enhanced Nuclear Core Aluminum Leg Improved Hover Unit Improved Hover Unit Light EM Pulse Cannon Improved Light Cannon Gauss Cannon [Rating: 39] Favorites ----------- Power Ion Engine Engine Ion Engine Power Core Enhanced Nuclear Core Propulsion Wheel Leg Aluminum Leg Wheel Wheel Hover Unit Improved Hover Unit Utility Huge Storage Unit Device ECM Suite Storage Huge Storage Unit Processor Improved Targeting Computer Protection Core Shielding Weapon Improved Light Cannon Energy Gun Medium Laser Energy Cannon Light EM Pulse Cannon Ballistic Gun Heavy Assault Rifle Ballistic Cannon Improved Light Cannon Launcher Grenade Launcher Build | -11 -10 -10 -9 -8 -7 -7 ------- Run | Yrd Mat Min Mat Mat Fac Low Slots Evolved 6 | . . . 2 2 2 . Power 1 | . . . . . 1 . Propulsion 2 | . . . . 2 . . Utility 3 | . . . 2 . 1 . Weapon . | . . . . . . . Parts Attached 56 | 6 5 10 18 7 9 1 Power 10 | 1 . 1 3 . 5 . Engine 5 | 1 . 1 3 . . . Core 5 | . . . . . 5 . Reactor . | . . . . . . . Propulsion 22 | 2 . 7 7 5 1 . Treads . | . . . . . . . Leg 5 | . . 2 2 . 1 . Wheel 14 | 2 . 5 5 2 . . Hover 3 | . . . . 3 . . Flight . | . . . . . . . Utility 9 | 1 2 . 3 . 3 . Device 2 | . . . 1 . 1 . Storage 2 | 1 1 . . . . . Processor 4 | . . . 2 . 2 . Hackware . | . . . . . . . Protection 1 | . 1 . . . . . Artifact . | . . . . . . . Weapon 15 | 2 3 2 5 2 . 1 Energy Gun 1 | 1 . . . . . . Energy Cannon 1 | . . . 1 . . . Ballistic Gun 7 | 1 2 1 2 1 . . Ballistic Cannon 5 | . 1 . 2 1 . 1 Launcher 1 | . . 1 . . . . Special Weapon . | . . . . . . . Impact Weapon . | . . . . . . . Slashing Weapon . | . . . . . . . Piercing Weapon . | . . . . . . . Special Melee Weapon . | . . . . . . . Unidentified Prototypes 2 | . . . 1 . 1 . Parts Lost 21 | . . 7 . 4 2 8 Power 2 | . . 1 . . . 1 Propulsion 9 | . . 3 . 2 2 2 Utility 5 | . . . . 1 . 4 Weapon 5 | . . 3 . 1 . 1 Highest Loss Streak 8 | . . 3 . 2 2 8 To Critical Strikes 2 | . . . . 1 . 1 Average Backups 9 | 1 5 6 9 12 12 15 Power 2 | . 1 . 1 4 6 7 Propulsion 4 | 1 2 3 5 5 3 4 Utility . | . . . 1 . . 2 Weapon 1 | . 2 1 . 2 2 2 Tool/Special . | . . . . . . . Unused Backups 12 | . . . . 2 1 9 Power 6 | . . . . . 1 5 Propulsion 3 | . . . . 2 . 1 Utility 2 | . . . . . . 2 Weapon 1 | . . . . . . 1 Tool/Special . | . . . . . . . Average Slot Usage (%) 94 | . 98 98 91 91 94 87 Engine 9 | . 14 13 10 9 1 . Core 2 | . . . . . 13 12 Leg 3 | . . 10 . . 5 12 Wheel 20 | . 28 16 20 25 19 12 Hover 1 | . . . . 6 3 . Device 3 | . . . 5 5 5 6 Storage 11 | . 14 14 11 9 7 7 Processor 13 | . . . 21 18 20 21 Protection 5 | . 12 14 2 . . . Energy Gun 1 | . . 4 2 . . . Ballistic Gun 8 | . 14 7 8 3 7 4 Ballistic Cannon 8 | . 13 9 6 14 7 6 Launcher 1 | . . 5 . . . . Peak Build Rating 39 | 6 8 8 16 22 39 37 Average Rating 15 | 4 7 7 13 18 33 31 On Entrance 13 | . 6 8 8 15 20 37 Avg Prop Armor Cover (%) 6 | . . . . 2 6 11 Naked Turns . | . . . . . . . Heaviest Build 107 | 14 92 92 100 101 107 106 Greatest Support 52 | 26 26 26 32 52 36 26 Greatest Overweight (x) 29 | . 3 9 29 4 4 6 Average Overweight (x) 3 | . 2 3 3 1 2 4 Largest Inventory Capacity 25 | 8 25 25 25 25 25 25 Average Capacity 24 | 6 21 25 25 25 25 25 Most Carried 16 | 3 8 8 15 15 16 16 Average Carried 9 | 2 5 6 9 12 13 15 Final Capacity 25 | 8 25 25 25 25 25 25 Final Carried 16 | 3 8 7 15 11 16 14 Class Distribution -------------------- 55% | Mutant 44% | Scavenger-Mutant Dominant Class ---------------- Mutant | -10/Materials Mutant | -10/Mines Scavenger-Mutant | -9/Materials Scavenger-Mutant | -8/Materials Scavenger-Mutant | -7/Factory Mutant | -7/Lower Caves Resources | -11 -10 -10 -9 -8 -7 -7 ----------- Run | Yrd Mat Min Mat Mat Fac Low Matter Collected 1779 | 221 155 481 587 202 130 3 Remotely . | . . . . . . . Salvage Created 1872 | . 230 225 857 321 181 58 Parts 105 | . 8 14 54 22 6 1 Haulers Intercepted 1 | . . . 1 . . . Recyclers Shooed 2 | . . 1 1 . . . Parts Field Recycled . | . . . . . . . Retrieved Matter . | . . . . . . . Parts Self-Destructed 1 | . . . . . . 1 Prevented . | . . . . . . . Parts Restored . | . . . . . . . Kills | -11 -10 -10 -9 -8 -7 -7 ------- Run | Yrd Mat Min Mat Mat Fac Low Combat Hostiles Destroyed 62 | . 5 21 19 10 6 1 Melee 1 | . . 1 . . . . Guns 12 | . . 5 4 . 3 . Cannons 36 | . 5 3 15 9 3 1 AOE 13 | . . 12 . 1 . . Classes Destroyed 15 | . 2 6 6 1 . . Worker 3 | . . 1 1 1 . . Builder 3 | . . 3 . . . . Tunneler 1 | . . 1 . . . . Hauler 1 | . . . 1 . . . Recycler 5 | . . 1 3 1 . . Operator 2 | . . . 1 1 . . Watcher 5 | . 3 . 1 1 . . Swarmer 9 | . . . 3 3 3 . Grunt 19 | . 5 . 8 4 2 . Brawler 1 | . . . 1 . . . Duelist 1 | . . . 1 . . . Sentry 9 | . . . 6 1 1 1 Demolisher 1 | . . 1 . . . . Hunter 2 | . . . . 2 . . Assembled 20 | . . 20 . . . . Best Kill Streak 11 | . 3 11 6 8 3 1 Combat Bots Only 5 | . 2 4 5 5 3 1 Max Kills in Single Turn 3 | . 1 2 1 3 2 1 Gunslinging . | . . . . . . . Exploded 1 | . . 1 . 1 . . Melee 1 | . . 1 . . . . Uniques/NPCs Destroyed . | . . . . . . . Combat | -11 -10 -10 -9 -8 -7 -7 -------- Run | Yrd Mat Min Mat Mat Fac Low Hostile Shots Fired 342 | . 11 54 78 58 44 97 Missed 98 | . 2 15 31 16 10 24 Hits 244 | . 9 39 47 42 34 73 Melee 42 | . . 10 . . . 32 Projectile 202 | . 9 29 47 42 34 41 AOE 9 | . . 9 . . . . Critical Strikes 14 | . . 2 . 2 . 10 Part Disruptions 1 | . . 1 . . . . Damage Taken 3584 | . 83 807 484 440 330 1440 Core 995 | . 23 104 141 80 75 572 Absorbed by Shields . | . . . . . . . Redirected to Shielding 30 | . 3 19 8 . . . Ignored by Resistances 1009 | . 27 223 140 128 99 392 Core Remaining (%) 74 | 100 . 49 64 85 . . Volleys Fired 178 | . 15 46 64 30 15 8 Largest 2 | . 2 2 2 2 2 2 Hottest 79 | . 53 73 79 70 65 65 Shots Fired 323 | . 30 81 110 60 30 12 Gun 105 | . 15 30 39 2 15 4 Cannon 200 | . 15 33 71 58 15 8 Launcher 18 | . . 18 . . . . Special . | . . . . . . . Kinetic 282 | . 30 50 102 60 30 10 Thermal 18 | . . 13 5 . . . Explosive 18 | . . 18 . . . . Electromagnetic 5 | . . . 3 . . 2 Robot Hit Streak 28 | . 11 9 28 12 5 16 Robot Miss Streak 3 | . 1 3 1 3 2 . Penetration Max . | . . . . . . . Secondary Targets . | . . . . . . . Shots Hit Robots 236 | . 25 49 88 41 21 12 Core Hits 129 | . 11 48 36 19 9 6 Critical Kills . | . . . . . . . Critical Parts Destroyed 1 | . . 1 . . . . Critical Strikes 11 | . 1 2 5 1 2 . Burn 2 | . . 1 1 . . . Destroy 1 | . . 1 . . . . Blast 8 | . 1 . 4 1 2 . Melee Attacks . | . . . . . . . Impact . | . . . . . . . Slashing . | . . . . . . . Piercing . | . . . . . . . Sneak Attacks . | . . . . . . . Combat Hostiles . | . . . . . . . Follow-up Attacks . | . . . . . . . Damage Inflicted 5682 | . 391 1603 1722 1199 474 293 Guns 1281 | . 167 278 458 40 258 80 Cannons 3051 | . 223 366 1235 832 216 179 Explosions 1261 | . . 934 . 327 . . Melee . | . . . . . . . Ramming 89 | . 1 25 29 . . 34 Kinetic 4069 | . 390 518 1593 872 474 222 Thermal 188 | . . 126 62 . . . Explosive 1261 | . . 934 . 327 . . Electromagnetic 75 | . . . 38 . . 37 Impact . | . . . . . . . Slashing . | . . . . . . . Piercing . | . . . . . . . Highest Corruption 9 | . . 7 . . . 9 Average Corruption 6 | . . 6 . . . 6 Corruption Purged . | . . . . . . . Corruption Blocked . | . . . . . . . Effects 9 | . . 8 . . . 1 Message Errors 3 | . . 3 . . . . Matter Fused 3 | . . 2 . . . 1 Energy Discharges 2 | . . 2 . . . . Data Loss (major) 1 | . . 1 . . . . Overload Shots . | . . . . . . . Overflow Damage 149 | . . 46 29 50 24 . Projectiles 79 | . . 31 24 . 24 . Explosions 58 | . . 8 . 50 . . Melee 12 | . . 7 5 . . . Knockbacks 28 | . 2 7 7 10 2 . Impact . | . . . . . . . Kinetic 28 | . 2 7 7 10 2 . Secondary . | . . . . . . . Self-Inflicted Damage 75 | . . 49 14 . . 12 Shots 3 | . . 3 . . . . Rammed 16 | . 1 2 2 . . 11 Targets Rammed 16 | . 1 2 2 . . 11 Kicked . | . . . . . . . Crushed . | . . . . . . . Highest Temperature 409 | . 12 74 42 105 409 72 Average Temperature 36 | . 5 27 12 21 89 31 Received Heat Transfer 771 | . 57 138 195 153 84 144 Siege Activations . | . . . . . . . Martial Activations . | . . . . . . . Shielding Activations . | . . . . . . . Robots Disrupted . | . . . . . . . Combat Hostiles . | . . . . . . . Robots Corrupted 1 | . . . 1 . . . Combat Hostiles . | . . . . . . . Parts Fried 2 | . . . 2 . . . Impact Corruptions 2 | . . 1 1 . . . Robots Melted . | . . . . . . . Combat Hostiles . | . . . . . . . Parts Melted 2 | . . 2 . . . . Heat Transferred 703 | . . 444 259 . . . Parts Sabotaged . | . . . . . . . Parts Stolen . | . . . . . . . Parts Stripped . | . . . . . . . Power Chain Reactions . | . . . . . . . Alert | -11 -10 -10 -9 -8 -7 -7 ------- Run | Yrd Mat Min Mat Mat Fac Low Maximum Alert Level 1 | . . . 1 1 . . Low Security (%) 93 | 100 100 100 94 53 100 . Level 1 6 | . . . 5 46 . . Level 2 . | . . . . . . . Level 3 . | . . . . . . . Level 4 . | . . . . . . . Level 5 . | . . . . . . . High Security . | . . . . . . . Max Security . | . . . . . . . Peak Influence 259 | . 40 43 259 257 82 . Initial 82 | . . 3 . 82 82 . Average 36 | . 9 6 39 181 11 . Influence Increases 1304 | . 131 120 548 310 175 20 Destroy 0b10 Robot/C 840 | . 100 20 380 200 120 20 Destroy 0b10 Robot/NC 100 | . 15 30 35 20 . . Destroy Leader 222 | . 16 10 114 52 30 . Trap Triggered on 0b10 10 | . . . 10 . . . Successful Hack 37 | . . . 7 16 14 . Disable Machine 18 | . . . . 9 9 . Destroy Structure 77 | . . 60 2 13 2 . Influence Decreases 1304 | . 121 130 319 327 387 20 Entered New Map 284 | . . 7 . 147 130 . Time Decay 870 | . 121 115 319 140 165 10 Lost Part 68 | . . 8 . 40 10 10 Purge Threat 82 | . . . . . 82 . Squads Dispatched 6 | . . . 3 1 2 . Investigation 2 | . . . 1 . 1 . Extermination 1 | . . . . . 1 . Reinforcement 3 | . . . 2 1 . . Assault . | . . . . . . . Garrison . | . . . . . . . Intercept . | . . . . . . . Searches Triggered . | . . . . . . . Construction Impeded . | . . . . . . . Haulers Reinforced . | . . . . . . . Active Scanning Responses . | . . . . . . . Cargo Convoy Interrupts . | . . . . . . . Stealth | -11 -10 -10 -9 -8 -7 -7 --------- Run | Yrd Mat Min Mat Mat Fac Low Distress Signals 4 | . . . 2 2 . . Communications Jammed . | . . . . . . . Distress Signals . | . . . . . . . Times Spotted 88 | . 8 22 26 19 6 7 Peak Tracking Total 7 | . 2 3 4 4 3 7 Tactical Retreats 7 | . . 2 3 2 . . ECM-based Alert Blocks 9 | . . . 5 4 . . Traps | -11 -10 -10 -9 -8 -7 -7 ------- Run | Yrd Mat Min Mat Mat Fac Low Traps Triggered 3 | . . . 3 . . . Indirectly . | . . . . . . . Trap Hack Attempts . | . . . . . . . Triggered . | . . . . . . . Disarmed . | . . . . . . . Reprogrammed 4 | . . . 4 . . . Reused 1 | . . . 1 . . . Traps Extracted . | . . . . . . . Installed . | . . . . . . . Triggered 1 | . . . 1 . . . Machines | -11 -10 -10 -9 -8 -7 -7 ---------- Run | Yrd Mat Min Mat Mat Fac Low Machines Disabled 2 | . . . . 1 1 . Max in Single Turn 1 | . . . . 1 1 . Machines Repaired . | . . . . . . . Machines Dismantled . | . . . . . . . Machines Sabotaged . | . . . . . . . Overloaded Fab Kills . | . . . . . . . Hacking | -11 -10 -10 -9 -8 -7 -7 --------- Run | Yrd Mat Min Mat Mat Fac Low Machines Accessed 13 | . 1 . 6 2 4 . Terminals 11 | . 1 . 5 2 3 . Fabricators 1 | . . . . . 1 . Repair Stations . | . . . . . . . Recycling Units 1 | . . . 1 . . . Scanalyzers . | . . . . . . . Garrison Access . | . . . . . . . Total Hacks 23 | . 1 . 12 4 6 . Successful 17 | . 1 . 9 4 3 . Failed 6 | . . . 3 . 3 . Catastrophic 1 | . . . . . 1 . Database Lockouts . | . . . . . . . Manual . | . . . . . . . Terminals 21 | . 1 . 11 4 5 . Fabricators 1 | . . . . . 1 . Repair Stations . | . . . . . . . Recycling Units 1 | . . . 1 . . . Scanalyzers . | . . . . . . . Garrison Access . | . . . . . . . Terminal Hacks 15 | . 1 . 8 4 2 . Record 2 | . . . 2 . . . Branch Access Points 1 | . . . . . 1 . Alert Level 2 | . . . 1 1 . . Unreport Threat 1 | . . . . . 1 . Reprogram Traps 1 | . . . 1 . . . Dispatch Records 1 | . . . . 1 . . Transport Status 1 | . . . 1 . . . Reinforcement Status 1 | . . . 1 . . . Recall Reinforcements 1 | . . . 1 . . . Zone Layout 4 | . 1 . 1 2 . . Fabricator Hacks 1 | . . . . . 1 . Network Status 1 | . . . . . 1 . Repair Station Hacks . | . . . . . . . Recycling Unit Hacks 1 | . . . 1 . . . Report Inventory 1 | . . . 1 . . . Scanalyzer . | . . . . . . . Garrison Access Hacks . | . . . . . . . Unauthorized Hacks . | . . . . . . . Terminals . | . . . . . . . Fabricators . | . . . . . . . Repair Stations . | . . . . . . . Recycling Units . | . . . . . . . Scanalyzers . | . . . . . . . Garrison Access . | . . . . . . . Data Cores Recovered . | . . . . . . . Used . | . . . . . . . Hacking Detections 7 | . . . 2 2 3 . Full Trace Events 1 | . . . . . 1 . Feedback Events . | . . . . . . . Feedback Blocked . | . . . . . . . Robot Schematics Acquired . | . . . . . . . Robots Built . | . . . . . . . Authchips . | . . . . . . . Time . | . . . . . . . Total Robot Build Rating . | . . . . . . . Part Schematics Acquired . | . . . . . . . Parts Built . | . . . . . . . Authchips . | . . . . . . . Time . | . . . . . . . Total Part Build Rating . | . . . . . . . Part Studies Acquired . | . . . . . . . Parts Repaired . | . . . . . . . Time . | . . . . . . . Parts Recycled . | . . . . . . . Recycled Matter . | . . . . . . . Retrieved Matter . | . . . . . . . Retrieved Components . | . . . . . . . Parts Scanalyzed . | . . . . . . . Part Schematics Acquired . | . . . . . . . Parts Damaged . | . . . . . . . Bothacking | -11 -10 -10 -9 -8 -7 -7 ------------ Run | Yrd Mat Min Mat Mat Fac Low Used RIF Installer . | . . . . . . . Robots Hacked . | . . . . . . . Non-combat . | . . . . . . . Combat . | . . . . . . . Robot Hacks Applied . | . . . . . . . Relay Couplers Released . | . . . . . . . Fabnet Peak Effective % . | . . . . . . . Robots Rewired . | . . . . . . . Allies Hacked . | . . . . . . . Hacks Repelled . | . . . . . . . Allies | -11 -10 -10 -9 -8 -7 -7 -------- Run | Yrd Mat Min Mat Mat Fac Low Total Allies 3 | . . 2 . . . 1 Largest Group 2 | . . 2 . . . 1 Highest-Rated Group 141 | . . 45 . . . 141 Highest-Rated Ally 141 | . . 31 . . . 141 Total Orders . | . . . . . . . Ally Attacks 2 | . . 2 . . . . Total Damage 32 | . . 32 . . . . Kills . | . . . . . . . Allies Corrupted . | . . . . . . . Allies Melted . | . . . . . . . Intel | -11 -10 -10 -9 -8 -7 -7 ------- Run | Yrd Mat Min Mat Mat Fac Low Active Infowar (turns) 1308 | . . . 609 181 379 139 Sensors 518 | . . . . . 379 139 ECM 790 | . . . 609 181 . . Robot Analysis Total . | . . . . . . . Derelict Logs Recovered . | . . . . . . . Drone Launches . | . . . . . . . Drone Recoveries . | . . . . . . . Exploration | -11 -10 -10 -9 -8 -7 -7 ------------- Run | Yrd Mat Min Mat Mat Fac Low Turns Passed 3336 | 50 508 602 1214 288 522 152 Spaces Moved 1576 | 41 326 216 533 105 291 64 Core 10 | 6 . . 4 . . . Treads . | . . . . . . . Legs 40 | . . 40 . . . . Wheels 1507 | 35 326 176 529 86 291 64 Hover 19 | . . . . 19 . . Flight . | . . . . . . . Fastest Speed 50 | 50 90 135 130 105 116 135 Average Speed 143 | 84 123 187 148 146 127 151 Slowest Speed 1500 | 100 135 400 1500 297 150 190 Overloaded Moves . | . . . . . . . Propulsion Burnouts . | . . . . . . . Robots Hopped . | . . . . . . . Potential Cave-ins . | . . . . . . . Cave-ins Triggered . | . . . . . . . Exploration Rate (%) 27 | 4 47 52 51 17 8 14 Regions Visited 6 Branch Regions 2 Pre-discovered Areas . | . . . . . . . Known Exits Taken 1 | . . . . . 1 . Unknown Exits Taken 5 | 1 1 1 1 1 . . Scrap Searched 1 | . . 1 . . . . Spaces Dug . | . . . . . . . Terrain Destroyed 107 | . . 85 2 20 . . Melee . | . . . . . . . Projectile 5 | . . . 2 3 . . AOE 102 | . . 85 . 17 . . Terrain Rammed . | . . . . . . . Walls Destroyed . | . . . . . . . Machines Disabled . | . . . . . . . Actions | -11 -10 -10 -9 -8 -7 -7 --------- Run | Yrd Mat Min Mat Mat Fac Low Total 2307 | 53 400 333 843 181 412 85 Wait 392 | 4 44 49 196 25 74 . Move 1570 | 40 325 215 532 104 290 64 Hop . | . . . . . . . Pick Up 50 | 3 7 6 15 6 13 . Fast Attach 15 | 6 1 . 5 . 3 . Attach 32 | . 1 9 9 6 5 2 Detach 7 | . . 2 3 1 1 . Swap 21 | . 3 2 8 3 5 . Drop 26 | . 3 2 9 6 6 . Fire 178 | . 15 46 64 30 15 8 Melee . | . . . . . . . Ram 16 | . 1 2 2 . . 11 Kick . | . . . . . . . Crush . | . . . . . . . Escape Stasis . | . . . . . . . Rewire . | . . . . . . . Trap . | . . . . . . . Miscellaneous . | . . . . . . . Route ------- -11/Scrapyard -10/Materials (discovered 2 exits: *Mat / [*Min]) -10/Mines -9/Materials -8/Materials -7/Factory (discovered 4 exits: Sto x2 / *Low x2) -7/Lower Caves History --------- Turn | Location | Event 7 | -11/Scrapyard | Discovered new exit (range 15) 51 | -11/Scrapyard | Entered Materials 309 | -10/Materials | Build established: Mutant 374 | -10/Materials | Discovered new exit (range 12) 549 | -10/Materials | Discovered new exit (range 8) 559 | -10/Materials | Entered Mines 638 | -10/Mines | Assembled infested the area 643 | -10/Mines | Assisted by a Guerilla fighting off Assembled 705 | -10/Mines | Lost 3 allies 718 | -10/Mines | Lost 3 parts (2n1w) 1086 | -10/Mines | Core integrity fell below 50% 1125 | -10/Mines | Discovered new exit (range 9) 1161 | -10/Mines | Entered Materials 1161 | -9/Materials | Evolved 2 slots: Utility x2 1966 | -9/Materials | Build established: Scavenger-Mutant 2324 | -9/Materials | Discovered new exit (range 16) 2375 | -9/Materials | Entered another Materials area 2375 | -8/Materials | Evolved 2 slots: Propulsion x2 2590 | -8/Materials | Discovered new exit (range 16) 2663 | -8/Materials | Entered Factory 2663 | -7/Factory | Evolved 2 slots: Power x1, Utility x1 2901 | -7/Factory | Identified exit to Storage 2901 | -7/Factory | Identified exit to Lower Caves 3185 | -7/Factory | Entered Lower Caves 3247 | -7/Lower Caves | Build established: Mutant 3276 | -7/Lower Caves | Attracted the attention of an 0b10 outpost 3325 | -7/Lower Caves | Core integrity fell below 50% 3335 | -7/Lower Caves | Core integrity fell below 20% 3337 | -7/Lower Caves | Self-destructed Last Messages --------------- Imp. Signal Interpreter temporarily disabled. Imp. Terrain Scan Processor temporarily disabled. Slammed into L-41 Fighter. Destabilizing: System corrupted (+2). Slammed into L-41 Fighter. Com. Wheel destroyed. Imp. Terrain Scan Processor destroyed. System corrupted by crushing effect (+1). Slammed into L-41 Fighter. Enh. Nuclear Core destroyed. Critical hit (Smash). Imp. Sensor Array destroyed. Imp. Signal Interpreter destroyed. System corrupted by crushing effect (+4). Imp. Targeting Computer destroyed. System corrupted by crushing effect (+2). Aluminum Leg severed. A strange signal echoes through the caves. System corrupted: Matter fused (-7). Map ----- +----------------------------------------------------+ | ?????????????????????????????????????????????????? | | ?????????????????????????????????????????????????? | | ?????????????????????????????????????????????????? | | ?????????????????????????????????????????????????? | | ?????????????????????????????????????????????????? | | ?????????????????????????????????????????????????? | | ?????????????????????????????????????????????????? | | ?????????????????????????????????????????????????? | | ?????????????????????????????????????????????????? | | ?????????????????????????????????????????????????? | | ?????????????????????????????????????????????????? | | ?????????????????????????????????????????????????? | | ?????????????????????????????????????????????????? | | ?????????????????????????????????????????????????? | | ?????????????????????????????????????????????????? | | ?????????????????????????????????????????????????? | | ?????????????????????????????????????????????????? | | ?????????????????????????????????????????????????? | | ?????????????????????????????????????????????????? | | ?????????????????????????????????????????????????? | | ????????????????????###??????????????????????????? | | ????????????????????? #?????????????????????????? | | ??????????????######?# #?????????????????????????? | | ??????????????#""""""# ####??#######?????????????? | | ??????????????# # #### ##????????????? | | ??????????????# + b@l # #????????????? | | ??????????????###//??#g bb#### # #????????????? | | ??????????????#%% ??# s##??### # ##????????????? | | ??????????????# ?# #?????# ##?????????????? | | ????????????# ## ## ##?????# #??????????????? | | ????????# $ ]=* ##????### #??????????????? | | ????????????########;#]#????## #??????????????? | | ???????????????????#####????# ##?????????????? | | ????????????????????????##### ##????????????? | | ???????????????????###### #????????????? | | ????????????????? " ##???????????? | | ???????????????? """" #???????????? | | ?????????????????###### " #???????????? | | ??????????????????????# " #####???????????? | | ??????????????????????# """ #???????????????? | | ???????????????????? ?# """" ##??????????????? | | ?????????????????? ?# "" ##?????????????? | | ??????????????? #### ##????????????? | | ??????????????? ??# #????????????? | | ???????????????? ??##### #????????????? | | ????????????????? ??????# ##???????????? | | ?????????????????# ?????## #???????????? | | ????????????????# ?????# #???????????? | | ? ??????????????## ##???## ##???????????? | | ??# ?????????????# ####### ##????????????? | +----------------------------------------------------+ Best States ------------- Heat Dissipation 34 Energy Generation 29 Energy Capacity 500 Matter Stores 300 Matter Capacity 300 Sight Range 16 Robot Scan Range 15 Terrain Scan Density 110 ECM Strength 1 Resistance: KI 20 Resistance: TH 20 Resistance: EX 20 Resistance: EM 20 Resistance: I 20 Resistance: S 20 Resistance: P 20 Core Shielding 20 Evasion (%) 42 Targeting Accuracy 6 Offensive Hacking 10 Item Schematics ----------------- None Robot Schematics ------------------ None Fabricated ------------ Nothing Repaired ---------- Nothing Studied --------- None Alien Tech Used ----------------- None Achievements -------------- Exterminator Challenges ------------ None Game ------ Seed SmartMolecularMapper Manual? 0 Play Time 00:35:53 Cumulative 15.0 hours Start 2025.11.17 @ 09:42:58 End 2025.11.17 @ 10:17:18 Sessions 1 Manual Loads 0 Difficulty Adventurer Special Mode None Game No. 27 Rogue 1 Adventurer 26 Explorer 0 Win Type - Total 0 Types 0/0/0/0/0/0/0/0/0/0 Lore% 10 Gallery% 21 Achievement% 17 Wizard Run 0 Options --------- Layout 2 ASCII 0 Keyboard 0 Movement Mouse Keybinds 0 Fullscreen 1 Font 24/Smallcaps Map View 50x44 Zoom Use 0% Tactical HUD 0 Map Filters NONE Filters NONE Steam 1 RUN: 29011eb2-3874-4849-a5f0-f69e77225f7f